{"text_format":"1","workbook":"xlsx","n_sheets":1,"sheets":["Legacy Program Eligibility"],"not_rendered":{"charts":0,"images":0,"macros":1,"external_links":0,"defined_names":1,"comments":0,"pivot_tables":0},"unopened":[],"bounds":{"document_bytes":16777216,"sheet_cells":100000,"rows_first":2000,"rows_last":500,"rows_between":2000,"halvings":0,"cell_chars":16384,"cell_head_chars":4096},"cells_cut":0,"cells_raw":0,"read":"whole","date_system":"1900"}

{"sheet":"Legacy Program Eligibility","index":0,"n_rows":217,"n_cols":45,"rows_kept":217,"cut":false,"hidden":false,"merged":[[8,2,11,2],[12,2,26,2],[27,2,33,2],[34,2,37,2],[6,31,6,35],[1,1,2,2],[1,3,2,28],[4,5,4,6],[4,7,4,30],[6,5,6,8],[6,10,6,21],[6,23,6,29]]}
[]
[null,"A►",null,"Use the pull-down list below to determine if your retired product is eligible for the Autodesk Legacy Program.",null,null,null,null,null,null,null,null,null,null,null,null,null,null,null,null,null,null,null,null,null,null,null,null,null,null,null,null,"legacymatrix"]
[]
[]
[null,null,null,null,null,"B►",null,"The matrix below displays the paths available from eligible retired products."]
[]
[null,null,null,null,null,"Horizontal Design",null,null,null,null,"AEC",null,null,null,null,null,null,null,null,null,null,null,null,"Manufacturing",null,null,null,null,null,null,null,"M&E"]
[null,null,null,null,null,"AutoCAD","AutoCAD Raster Design","AutoCAD Visualization Suite","Autodesk 3ds Max Design",null,"AutoCAD Architecture ","AutoCAD Civil 3D ","AutoCAD Map 3D ","AutoCAD MEP ","AutoCAD P&ID ","AutoCAD Revit Architecture Suite ","AutoCAD Revit MEP Suite ","AutoCAD Revit Structure Suite ","Autodesk Revit Architecture ","Autodesk Revit Structure ","Autodesk Topobase Client ","CAiCE Visual Transportation Products ",null,"AutoCAD Electrical ","AutoCAD Inventor Professional Suite ","AutoCAD Inventor Routed Systems Suite ","AutoCAD Inventor Simulation Suite ","AutoCAD Inventor Suite ","AutoCAD Inventor Tooling Suite ","AutoCAD Mechanical ",null,"Autodesk 3ds Max ","Autodesk 3ds Max Entertainment Creation Suite","Autodesk Maya ","Autodesk Maya Entertainment Creation Suite","Motion Builder"]
[null,null,"HD",null,null,"X",null,"X",null,null,"X","X","X","X","X","X","X","X","X","X","X",null,null,"X","X","X","X","X","X","X"]
[null,null,null,null,null,null,"X"]
[null,null,null,null,null,null,"X"]
[null,null,null,null,null,null,null,null,"X"]
[null,null,"AEC",null,null,null,null,null,null,null,"X",null,null,"X",null,"X",null,"X","X","X"]
[null,null,null,null,null,null,null,null,null,null,null,"X"]
[null,null,null,null,null,null,null,null,null,null,null,"X","X",null,null,null,null,null,null,null,"X"]
[null,null,null,null,null,null,null,null,null,null,null,"X","X"]
[null,null,null,null,null,null,null,null,null,null,null,null,null,"X",null,null,"X"]
[null,null,null,null,null,null,null,null,null,null,null,null,null,"X",null,null,"X"]
[null,null,null,null,null,null,null,null,null,null,null,null,null,"X",null,null,"X"]
[null,null,null,null,null,null,null,null,null,null,null,null,null,null,null,"X"]
[null,null,null,null,null,null,null,null,null,null,null,null,null,null,null,"X"]
[null,null,null,null,null,null,null,null,null,null,null,null,null,null,null,"X",null,null,"X"]
[null,null,null,null,null,null,null,null,null,null,null,null,null,null,null,"X",null,null,"X"]
[null,null,null,null,null,null,null,null,null,null,null,null,null,null,null,null,"X","X"]
[null,null,null,null,null,null,null,null,null,null,null,null,null,null,null,null,null,"X"]
[null,null,null,null,null,null,null,null,null,null,null,null,null,null,null,null,null,"X",null,"X"]
[null,null,null,null,null,null,null,null,null,null,null,"X",null,null,null,null,null,null,null,null,null,"X"]
[null,null,"MFG",null,null,null,null,null,null,null,null,null,null,null,null,null,null,null,null,null,null,null,null,"X"]
[null,null,null,null,null,null,null,null,null,null,null,null,null,null,null,null,null,null,null,null,null,null,null,"X","X","X","X","X","X","X"]
[null,null,null,null,null,null,null,null,null,null,null,null,null,null,null,null,null,null,null,null,null,null,null,null,"X"]
[null,null,null,null,null,null,null,null,null,null,null,null,null,null,null,null,null,null,null,null,null,null,null,null,"X","X"]
[null,null,null,null,null,null,null,null,null,null,null,null,null,null,null,null,null,null,null,null,null,null,null,null,"X",null,"X"]
[null,null,null,null,null,null,null,null,null,null,null,null,null,null,null,null,null,null,null,null,null,null,null,null,"X","X","X","X","X"]
[null,null,null,null,null,null,null,null,null,null,null,null,null,null,null,null,null,null,null,null,null,null,null,null,"X","X","X","X","X"]
[null,null,"M&E",null,null,null,null,null,"X",null,null,null,null,null,null,null,null,null,null,null,null,null,null,null,null,null,null,null,null,null,null,"X","X"]
[null,null,null,null,null,null,null,null,null,null,null,null,null,null,null,null,null,null,null,null,null,null,null,null,null,null,null,null,null,null,null,null,"X",null,"X","X"]
[null,null,null,null,null,null,null,null,null,null,null,null,null,null,null,null,null,null,null,null,null,null,null,null,null,null,null,null,null,null,null,null,null,"X","X"]
[null,null,null,null,null,null,null,null,null,null,null,null,null,null,null,null,null,null,null,null,null,null,null,null,null,null,null,null,null,null,null,null,null,"X","X"]
[]
[null,null,null,"© Copyright 2010 Autodesk, Inc. All rights reserved",null,null,null,null,null,null,null,null,null,null,null,null,null,null,null,null,null,null,null,null,null,null,null,null,null,null,null,null,"Effective May 17, 2010"]
[]
[]
[null,null,null,"PRODUCT",null,"REL",null,null,null,null,null,null,null,null,null,null,null,null,null,null,null,null,null,null,null,null,null,null,null,null,null,null,null,null,null,null,null,null,null,"FY11 revisions"]
[null,null,null,null,null,null,"      Select your retired product here►",null,null,null,null,null,null,null,null,null,null,null,null,null,null,null,null,null,null,null,null,null,null,null,null,null,null,null,null,null,null,null,null,"Aligned products into current Authorizations",null,null,null,null,"V1"]
[null,null,null,"AutoCAD",null,null,{"$f":"CONCATENATE(D45,\" \",F45)","v":"AutoCAD "},null,null,null,null,null,null,null,null,null,null,null,null,null,null,null,null,null,null,null,null,null,null,null,null,null,null,null,null,null,null,null,null,"Merged Inventor \"Coming From\" with Inventor Series",null,null,null,null,"V1"]
[null,null,null,"AutoCAD",null,"R14","AutoCAD R14",null,null,null,null,null,null,null,null,null,null,null,null,null,null,null,null,null,null,null,null,null,null,null,null,null,null,null,null,null,null,null,null,"Civil removed as \"Going To\".  End of Life",null,null,null,null,"V1"]
[null,null,null,"AutoCAD",null,2000,"AutoCAD 2000",null,null,null,null,null,null,null,null,null,null,null,null,null,null,null,null,null,null,null,null,null,null,null,null,null,null,null,null,null,null,null,null,"Added Architectual Desktop as \"Coming From\" to MEP.  ACAD Arch is now a path",null,null,null,null,"V1"]
[null,null,null,"AutoCAD",null,"2000i","AutoCAD 2000i",null,null,null,null,null,null,null,null,null,null,null,null,null,null,null,null,null,null,null,null,null,null,null,null,null,null,null,null,null,null,null,null,"Removed Arch Desktop as 'Going To\"Autodesk Revit Structure.  Not a current upgrade path ",null,null,null,null,"V2"]
[null,null,null,"AutoCAD",null,2002,"AutoCAD 2002",null,null,null,null,null,null,null,null,null,null,null,null,null,null,null,null,null,null,null,null,null,null,null,null,null,null,null,null,null,null,null,null,"Removed Revit Visualization Suite.  Legacy is no longer a path",null,null,null,null,"V2"]
[null,null,null,"AutoCAD",null,2004,"AutoCAD 2004",null,null,null,null,null,null,null,null,null,null,null,null,null,null,null,null,null,null,null,null,null,null,null,null,null,null,null,null,null,null,null,null,"Added CAD Overlay as Coming From Raster",null,null,null,null,"V3"]
[null,null,null,"AutoCAD",null,2005,"AutoCAD 2005",null,null,null,null,null,null,null,null,null,null,null,null,null,null,null,null,null,null,null,null,null,null,null,null,null,null,null,null,null,null,null,null,"Added Mechanical Desktop as Coming From for Inventor Tooling Suite.  If AIS then MDT",null,null,null,null,"V3"]
[null,null,null,"AutoCAD",null,2006,"AutoCAD 2006",null,null,null,null,null,null,null,null,null,null,null,null,null,null,null,null,null,null,null,null,null,null,null,null,null,null,null,null,null,null,null,null,"Added Civil 3D as Coming From (Subs Only)",null,null,null,null,"V3"]
[null,null,null,"AutoCAD",null,2007,"AutoCAD 2007",null,null,null,null,null,null,null,null,null,null,null,null,null,null,null,null,null,null,null,null,null,null,null,null,null,null,null,null,null,null,null,null,"Added Building Systems as Coming From (Subs Only)",null,null,null,null,"V3"]
[null,null,null,"Autodesk Raster Design",null,null,{"$f":"CONCATENATE(D54,\" \",F54)","v":"Autodesk Raster Design "},null,null,null,null,null,null,null,null,null,null,null,null,null,null,null,null,null,null,null,null,null,null,null,null,null,null,null,null,null,null,null,null,"Added Building Electrical as Coming From (Subs Only)",null,null,null,null,"V3"]
[null,null,null,"Raster Design",null,3,"Raster Design 3",null,null,null,null,null,null,null,null,null,null,null,null,null,null,null,null,null,null,null,null,null,null,null,null,null,null,null,null,null,null,null,null,"Added Building Mechanical as Coming From (Subs Only)",null,null,null,null,"V3"]
[null,null,null,"Raster Design",null,2004,"Raster Design 2004",null,null,null,null,null,null,null,null,null,null,null,null,null,null,null,null,null,null,null,null,null,null,null,null,null,null,null,null,null,null,null,null,"Added Revit Series as Coming From (Subs Only)",null,null,null,null,"V3"]
[null,null,null,"Raster Design",null,2005,"Raster Design 2005",null,null,null,null,null,null,null,null,null,null,null,null,null,null,null,null,null,null,null,null,null,null,null,null,null,null,null,null,null,null,null,null,"Added Revit Series - Building as Coming From (Subs Only)",null,null,null,null,"V3"]
[null,null,null,"Raster Design",null,2006,"Raster Design 2006",null,null,null,null,null,null,null,null,null,null,null,null,null,null,null,null,null,null,null,null,null,null,null,null,null,null,null,null,null,null,null,null,"Added Revit as Coming From (Subs Only)",null,null,null,null,"V3"]
[null,null,null,"Raster Design",null,2007,"Raster Design 2007",null,null,null,null,null,null,null,null,null,null,null,null,null,null,null,null,null,null,null,null,null,null,null,null,null,null,null,null,null,null,null,null,"Added Revit® Building as Coming From (Subs Only)",null,null,null,null,"V3"]
[null,null,null,"Autodesk CAD Overlay",null,null,"Autodesk CAD Overlay ",null,null,null,null,null,null,null,null,null,null,null,null,null,null,null,null,null,null,null,null,null,null,null,null,null,null,null,null,null,null,null,null,"Added Revit Series - Systems Plus as Coming From (Subs Only)",null,null,null,null,"V3"]
[null,null,null,"CAD Overlay",null,"R14","CAD Overlay R14",null,null,null,null,null,null,null,null,null,null,null,null,null,null,null,null,null,null,null,null,null,null,null,null,null,null,null,null,null,null,null,null,"Added Revit® Series - Structure as Coming From (Subs Only)",null,null,null,null,"V3"]
[null,null,null,"CAD Overlay",null,2000,"CAD Overlay 2000",null,null,null,null,null,null,null,null,null,null,null,null,null,null,null,null,null,null,null,null,null,null,null,null,null,null,null,null,null,null,null,null,"Added Revit® Structure as Coming From (Subs Only)",null,null,null,null,"V3"]
[null,null,null,"CAD Overlay",null,"2000i","CAD Overlay 2000i",null,null,null,null,null,null,null,null,null,null,null,null,null,null,null,null,null,null,null,null,null,null,null,null,null,null,null,null,null,null,null,null,"Added Electrical  as a Coming From (Subs Only)",null,null,null,null,"V3"]
[null,null,null,"CAD Overlay",null,2002,"CAD Overlay 2002",null,null,null,null,null,null,null,null,null,null,null,null,null,null,null,null,null,null,null,null,null,null,null,null,null,null,null,null,null,null,null,null,"Added Inventor Professional as a Coming From (Subs Only)",null,null,null,null,"V3"]
[null,null,null,"Autodesk VIZ",null,null,"Autodesk VIZ ",null,null,null,null,null,null,null,null,null,null,null,null,null,null,null,null,null,null,null,null,null,null,null,null,null,null,null,null,null,null,null,null,"Added Inventor® Routed Systems Suite as a Coming From (Subs Only)",null,null,null,null,"V3"]
[null,null,null,"Autodesk VIZ ",null,null,"Autodesk VIZ  ",null,null,null,null,null,null,null,null,null,null,null,null,null,null,null,null,null,null,null,null,null,null,null,null,null,null,null,null,null,null,null,null,"Added Inventor® Simulation Suite as a Coming From (Subs Only)",null,null,null,null,"V3"]
[null,null,null,"VIZ",null,2,"VIZ 2",null,null,null,null,null,null,null,null,null,null,null,null,null,null,null,null,null,null,null,null,null,null,null,null,null,null,null,null,null,null,null,null,"Add Plant 3D as a Going To Product (Q3 Price List)",null,null,null,null,"V4"]
[null,null,null,"VIZ",null,3,"VIZ 3"]
[null,null,null,"VIZ",null,"3i","VIZ 3i"]
[null,null,null,"VIZ",null,4,"VIZ 4"]
[null,null,null,"VIZ",null,2005,"VIZ 2005"]
[null,null,null,"VIZ",null,2006,"VIZ 2006"]
[null,null,null,"VIZ",null,2007,"VIZ 2007"]
[null,null,null,"CAiCE Visual Transportation Products",null,null,"CAiCE Visual Transportation Products ",null,null,null,null,null,null,null,null,null,null,null,null,null,null,null,null,null,null,null,null,null,null,null,null,null,null,null,null,"legacymatrix"]
[null,null,null,"Autodesk Architectural Desktop",null,null,"Autodesk Architectural Desktop ",null,null,null,null,null,null,"AutoCAD Architecture ",null,null,null,null,null,null,"First AutoCAD Architecture  is R2008"]
[null,null,null,"Architectural Desktop (ADT)",null,1,"Architectural Desktop (ADT) 1",null,null,null,null,null,null,"AutoCAD Architecture ",null,null,null,null,null,null,"First AutoCAD Architecture  is R2008"]
[null,null,null,"Architectural Desktop (ADT)",null,2,"Architectural Desktop (ADT) 2",null,null,null,null,null,null,"AutoCAD Architecture ",null,null,null,null,null,null,"First AutoCAD Architecture  is R2008"]
[null,null,null,"Architectural Desktop (ADT)",null,"2i","Architectural Desktop (ADT) 2i",null,null,null,null,null,null,"AutoCAD Architecture ",null,null,null,null,null,null,"First AutoCAD Architecture  is R2008"]
[null,null,null,"Architectural Desktop (ADT)",null,3,"Architectural Desktop (ADT) 3",null,null,null,null,null,null,"AutoCAD Architecture ",null,null,null,null,null,null,"First AutoCAD Architecture  is R2008"]
[null,null,null,"Architectural Desktop (ADT)",null,3.3,"Architectural Desktop (ADT) 3.3",null,null,null,null,null,null,"AutoCAD Architecture ",null,null,null,null,null,null,"First AutoCAD Architecture  is R2008"]
[null,null,null,"Architectural Desktop (ADT)",null,2004,"Architectural Desktop (ADT) 2004",null,null,null,null,null,null,"AutoCAD Architecture ",null,null,null,null,null,null,"First AutoCAD Architecture  is R2008"]
[null,null,null,"Architectural Desktop (ADT)",null,2005,"Architectural Desktop (ADT) 2005",null,null,null,null,null,null,"AutoCAD Architecture ",null,null,null,null,null,null,"First AutoCAD Architecture  is R2008"]
[null,null,null,"Architectural Desktop (ADT)",null,2006,"Architectural Desktop (ADT) 2006",null,null,null,null,null,null,"AutoCAD Architecture ",null,null,null,null,null,null,"First AutoCAD Architecture  is R2008"]
[null,null,null,"Architectural Desktop (ADT)",null,2007,"Architectural Desktop (ADT) 2007",null,null,null,null,null,null,"AutoCAD Architecture ",null,null,null,null,null,null,"First AutoCAD Architecture  is R2008"]
[null,null,null,"AutoCAD Civil 3D ",null,null,{"$f":"CONCATENATE(D85,\" \",F85)","v":"AutoCAD Civil 3D  "}]
[null,null,null,"AutoCAD Civil 3D ",null,2005,"AutoCAD Civil 3D  2005"]
[null,null,null,"AutoCAD Civil 3D ",null,2006,{"$f":"CONCATENATE(D87,\" \",F87)","v":"AutoCAD Civil 3D  2006"}]
[null,null,null,"AutoCAD Civil 3D ",null,2007,"AutoCAD Civil 3D  2007"]
[null,null,null,"Autodesk Map",null,null,{"$f":"CONCATENATE(D89,\" \",F89)","v":"Autodesk Map "}]
[null,null,null,"Map",null,2,"Map 2"]
[null,null,null,"Map",null,3,"Map 3"]
[null,null,null,"Map",null,"4 /2000","Map 4 /2000"]
[null,null,null,"Map",null,"4.5/2000i","Map 4.5/2000i"]
[null,null,null,"Map",null,5,"Map 5"]
[null,null,null,"Map",null,6,"Map 6"]
[null,null,null,"Map",null,2004,"Map 2004"]
[null,null,null,"Map",null,2005,"Map 2005"]
[null,null,null,"Map",null,2006,"Map 2006"]
[null,null,null,"Map",null,2007,"Map 2007"]
[null,null,null,"Autodesk Land Desktop",null,null,"Autodesk Land Desktop "]
[null,null,null,"Land Desktop (LDT)",null,1,"Land Desktop (LDT) 1"]
[null,null,null,"Land Desktop (LDT)",null,2,"Land Desktop (LDT) 2"]
[null,null,null,"Land Desktop (LDT)",null,"2i","Land Desktop (LDT) 2i"]
[null,null,null,"Land Desktop (LDT)",null,3,"Land Desktop (LDT) 3"]
[null,null,null,"Land Desktop (LDT)",null,2004,"Land Desktop (LDT) 2004"]
[null,null,null,"Land Desktop (LDT)",null,2005,"Land Desktop (LDT) 2005"]
[null,null,null,"Land Desktop (LDT)",null,2006,"Land Desktop (LDT) 2006"]
[null,null,null,"Land Desktop (LDT)",null,2007,"Land Desktop (LDT) 2007"]
[null,null,null,"Autodesk® Building Systems",null,null,"Autodesk® Building Systems ",null,null,null,null,null,null,"AutoCAD MEP",null,null,null,null,null,null,"First AutoCAD MEP is R2008"]
[null,null,null,"Building Systems",null,1,"Building Systems 1",null,null,null,null,null,null,"AutoCAD MEP",null,null,null,null,null,null,"First AutoCAD MEP is R2008"]
[null,null,null,"Building Systems",null,"2","Building Systems 2",null,null,null,null,null,null,"AutoCAD MEP",null,null,null,null,null,null,"First AutoCAD MEP is R2008"]
[null,null,null,"Building Systems",null,3,"Building Systems 3",null,null,null,null,null,null,"AutoCAD MEP",null,null,null,null,null,null,"First AutoCAD MEP is R2008"]
[null,null,null,"Building Systems",null,2004,"Building Systems 2004",null,null,null,null,null,null,"AutoCAD MEP",null,null,null,null,null,null,"First AutoCAD MEP is R2008"]
[null,null,null,"Building Systems",null,2005,"Building Systems 2005",null,null,null,null,null,null,"AutoCAD MEP",null,null,null,null,null,null,"First AutoCAD MEP is R2008"]
[null,null,null,"Building Systems",null,2006,"Building Systems 2006",null,null,null,null,null,null,"AutoCAD MEP",null,null,null,null,null,null,"First AutoCAD MEP is R2008"]
[null,null,null,"Building Systems",null,2007,"Building Systems 2007",null,null,null,null,null,null,"AutoCAD MEP",null,null,null,null,null,null,"First AutoCAD MEP is R2008"]
[null,null,null,"Autodesk Building Electrical",null,null,"Autodesk Building Electrical ",null,null,null,null,null,null,"AutoCAD MEP",null,null,null,null,null,null,"First AutoCAD MEP is R2008"]
[null,null,null,"Building Electrical",null,1,"Building Electrical 1",null,null,null,null,null,null,"AutoCAD MEP",null,null,null,null,null,null,"First AutoCAD MEP is R2008"]
[null,null,null,"Building Electrical",null,2,"Building Electrical 2",null,null,null,null,null,null,"AutoCAD MEP",null,null,null,null,null,null,"First AutoCAD MEP is R2008"]
[null,null,null,"Autodesk Building Mechanical",null,null,{"$f":"CONCATENATE(D120,\" \",F120)","v":"Autodesk Building Mechanical "},null,null,null,null,null,null,"AutoCAD MEP",null,null,null,null,null,null,"First AutoCAD MEP is R2008"]
[null,null,null,"Building Mechanical",null,1,"Building Mechanical 1",null,null,null,null,null,null,"AutoCAD MEP",null,null,null,null,null,null,"First AutoCAD MEP is R2008"]
[null,null,null,"Building Mechanical",null,2,"Building Mechanical 2",null,null,null,null,null,null,"AutoCAD MEP",null,null,null,null,null,null,"First AutoCAD MEP is R2008"]
[null,null,null,"Autodesk Revit Series",null,null,"Autodesk Revit Series ",null,null,null,null,null,null,"AutoCAD® Revit® Architecture Suite",null,null,null,null,null,null,"First AutoCAD® Revit® Architecture Suite is R2008"]
[null,null,null,"Revit Series",null,1,"Revit Series 1",null,null,null,null,null,null,"AutoCAD® Revit® Architecture Suite",null,null,null,null,null,null,"First AutoCAD® Revit® Architecture Suite is R2008"]
[null,null,null,"Revit Series",null,2,"Revit Series 2",null,null,null,null,null,null,"AutoCAD® Revit® Architecture Suite",null,null,null,null,null,null,"First AutoCAD® Revit® Architecture Suite is R2008"]
[null,null,null,"Revit Series",null,7,"Revit Series 7",null,null,null,null,null,null,"AutoCAD® Revit® Architecture Suite",null,null,null,null,null,null,"First AutoCAD® Revit® Architecture Suite is R2008"]
[null,null,null,"Revit Series",null,8.1,"Revit Series 8.1",null,null,null,null,null,null,"AutoCAD® Revit® Architecture Suite",null,null,null,null,null,null,"First AutoCAD® Revit® Architecture Suite is R2008"]
[null,null,null,"Revit Series",null,9,"Revit Series 9",null,null,null,null,null,null,"AutoCAD® Revit® Architecture Suite",null,null,null,null,null,null,"First AutoCAD® Revit® Architecture Suite is R2008"]
[null,null,null,"Autodesk Revit Series - Building",null,null,"Autodesk Revit Series - Building ",null,null,null,null,null,null,"AutoCAD® Revit® Architecture Suite",null,null,null,null,null,null,"First AutoCAD® Revit® Architecture Suite is R2008"]
[null,null,null,"Revit Series - Building",null,9,"Revit Series - Building 9",null,null,null,null,null,null,"AutoCAD® Revit® Architecture Suite",null,null,null,null,null,null,"First AutoCAD® Revit® Architecture Suite is R2008"]
[null,null,null,"Autodesk Revit®",null,null,"Autodesk Revit® ",null,null,null,null,null,null,"Autodesk Revit Architecture ",null,null,null,null,null,null,"First Autodesk Revit Architecture is R2008"]
[null,null,null,"Revit",null,4.5,"Revit 4.5",null,null,null,null,null,null,"Autodesk Revit Architecture ",null,null,null,null,null,null,"First Autodesk Revit Architecture is R2008"]
[null,null,null,"Revit",null,5,{"$f":"CONCATENATE(D133,\" \",F133)","v":"Revit 5"},null,null,null,null,null,null,"Autodesk Revit Architecture ",null,null,null,null,null,null,"First Autodesk Revit Architecture is R2008"]
[null,null,null,"Revit",null,"5.1L","Revit 5.1L",null,null,null,null,null,null,"Autodesk Revit Architecture ",null,null,null,null,null,null,"First Autodesk Revit Architecture is R2008"]
[null,null,null,"Revit",null,6,"Revit 6",null,null,null,null,null,null,"Autodesk Revit Architecture ",null,null,null,null,null,null,"First Autodesk Revit Architecture is R2008"]
[null,null,null,"Revit",null,7,{"$f":"CONCATENATE(D136,\" \",F136)","v":"Revit 7"},null,null,null,null,null,null,"Autodesk Revit Architecture ",null,null,null,null,null,null,"First Autodesk Revit Architecture is R2008"]
[null,null,null,"Autodesk® Revit® Building",null,null,"Autodesk® Revit® Building ",null,null,null,null,null,null,"Autodesk Revit Architecture ",null,null,null,null,null,null,"First Autodesk Revit Architecture is R2008"]
[null,null,null,"Revit® Building",null,8,"Revit® Building 8",null,null,null,null,null,null,"Autodesk Revit Architecture ",null,null,null,null,null,null,"First Autodesk Revit Architecture is R2008"]
[null,null,null,"Revit® Building",null,9,"Revit® Building 9",null,null,null,null,null,null,"Autodesk Revit Architecture ",null,null,null,null,null,null,"First Autodesk Revit Architecture is R2008"]
[null,null,null,"Autodesk® Revit Series - Systems Plus",null,null,{"$f":"CONCATENATE(D140,\" \",F140)","v":"Autodesk® Revit Series - Systems Plus "},null,null,null,null,null,null,"AutoCAD Revit Structure Suite ",null,null,null,null,null,null,"First AutoCAD Revit Structure Suite is R2008"]
[null,null,null,"Revit Series - Systems Plus",null,1,"Revit Series - Systems Plus 1",null,null,null,null,null,null,"AutoCAD Revit Structure Suite ",null,null,null,null,null,null,"First AutoCAD Revit Structure Suite is R2008"]
[null,null,null,"Autodesk® Revit® Series - Structure",null,null,{"$f":"CONCATENATE(D142,\" \",F142)","v":"Autodesk® Revit® Series - Structure "},null,null,null,null,null,null,"AutoCAD Revit Structure Suite ",null,null,null,null,null,null,"First Autodesk AutoCAD Revit Structure Suite is R2008"]
[null,null,null,"Revit® Series - Structure",null,2,"Revit® Series - Structure 2",null,null,null,null,null,null,"AutoCAD Revit Structure Suite ",null,null,null,null,null,null,"First Autodesk AutoCAD Revit Structure Suite is R2008"]
[null,null,null,"Autodesk® Revit® Structure",null,null,"Autodesk® Revit® Structure ",null,null,null,null,null,null,"Autodesk Revit Structure ",null,null,null,null,null,null,"First Autodesk Revit Structure is R2008"]
[null,null,null,"Revit® Structure",null,2,"Revit® Structure 2",null,null,null,null,null,null,"Autodesk Revit Structure ",null,null,null,null,null,null,"First Autodesk Revit Structure is R2008"]
[null,null,null,"Revit® Structure",null,3,"Revit® Structure 3",null,null,null,null,null,null,"Autodesk Revit Structure ",null,null,null,null,null,null,"First Autodesk Revit Structure is R2008"]
[null,null,null,"AutoCAD Electrical",null,null,"AutoCAD Electrical "]
[null,null,null,"Electrical ",null,2004,"Electrical  2004"]
[null,null,null,"Electrical ",null,2005,"Electrical  2005"]
[null,null,null,"Electrical ",null,2006,"Electrical  2006"]
[null,null,null,"Electrical ",null,2007,"Electrical  2007"]
[null,null,null,"Autodesk Inventor® Professional ",null,null,"Autodesk Inventor® Professional  ",null,null,null,null,null,null,"AutoCAD Inventor Professional Suite",null,null,null,null,null,null,"First AutoCAD Inventor Professional Suite is R2010"]
[null,null,null,"Inventor® Professional ",null,6,{"$f":"CONCATENATE(D153,\" \",F153)","v":"Inventor® Professional  6"},null,null,null,null,null,null,"AutoCAD Inventor Professional Suite",null,null,null,null,null,null,"First AutoCAD Inventor Professional Suite is R2010"]
[null,null,null,"Inventor® Professional ",null,7,"Inventor® Professional  7",null,null,null,null,null,null,"AutoCAD Inventor Professional Suite",null,null,null,null,null,null,"First AutoCAD Inventor Professional Suite is R2010"]
[null,null,null,"Inventor® Professional ",null,8,"Inventor® Professional  8",null,null,null,null,null,null,"AutoCAD Inventor Professional Suite",null,null,null,null,null,null,"First AutoCAD Inventor Professional Suite is R2010"]
[null,null,null,"Inventor® Professional ",null,9,"Inventor® Professional  9",null,null,null,null,null,null,"AutoCAD Inventor Professional Suite",null,null,null,null,null,null,"First AutoCAD Inventor Professional Suite is R2010"]
[null,null,null,"Inventor® Professional ",null,10,"Inventor® Professional  10",null,null,null,null,null,null,"AutoCAD Inventor Professional Suite",null,null,null,null,null,null,"First AutoCAD Inventor Professional Suite is R2010"]
[null,null,null,"Inventor® Professional ",null,11,"Inventor® Professional  11",null,null,null,null,null,null,"AutoCAD Inventor Professional Suite",null,null,null,null,null,null,"First AutoCAD Inventor Professional Suite is R2010"]
[null,null,null,"Autodesk Inventor® Routed Systems Suite",null,null,"Autodesk Inventor® Routed Systems Suite ",null,null,null,null,null,null,"AutoCAD Inventor Professional Suite",null,null,null,null,null,null,"First Autodesk Inventor® Routed Systems Suite is R11  Then skip to R2008"]
[null,null,null,"Inventor® Routed Systems Suite",null,11,{"$f":"CONCATENATE(D160,\" \",F160)","v":"Inventor® Routed Systems Suite 11"},null,null,null,null,null,null,"AutoCAD Inventor Professional Suite",null,null,null,null,null,null,"First Autodesk Inventor® Routed Systems Suite is R11  Then skip to R2008"]
[null,null,null,"Autodesk Inventor® Simulation Suite",null,null,"Autodesk Inventor® Simulation Suite ",null,null,null,null,null,null,"AutoCAD Inventor Professional Suite",null,null,null,null,null,null,"First Autodesk Inventor® Simulation Suite is R11.  Then skip to R2008"]
[null,null,null,"Inventor® Simulation Suite",null,11,"Inventor® Simulation Suite 11",null,null,null,null,null,null,"AutoCAD Inventor Professional Suite",null,null,null,null,null,null,"First Autodesk Inventor® Simulation Suite is R11.  Then skip to R2008"]
[null,null,null,"AutoCAD Mechanical",null,null,"AutoCAD Mechanical "]
[null,null,null,"Mechanical (ACAD/M)",null,14.5,"Mechanical (ACAD/M) 14.5"]
[null,null,null,"Mechanical (ACAD/M)",null,2000,"Mechanical (ACAD/M) 2000"]
[null,null,null,"Mechanical (ACAD/M)",null,"2000i","Mechanical (ACAD/M) 2000i"]
[null,null,null,"Mechanical (ACAD/M)",null,6,"Mechanical (ACAD/M) 6"]
[null,null,null,"Mechanical (ACAD/M)",null,2004,{"$f":"CONCATENATE(D168,\" \",F168)","v":"Mechanical (ACAD/M) 2004"}]
[null,null,null,"Mechanical (ACAD/M)",null,2005,"Mechanical (ACAD/M) 2005"]
[null,null,null,"Mechanical (ACAD/M)",null,2006,"Mechanical (ACAD/M) 2006"]
[null,null,null,"Mechanical (ACAD/M)",null,2007,"Mechanical (ACAD/M) 2007"]
[null,null,null,"AutoCAD Inventor Suite",null,null,{"$f":"CONCATENATE(D172,\" \",F172)","v":"AutoCAD Inventor Suite "},null,null,null,null,null,null,"AutoCAD Inventor Suite",null,null,null,null,null,null,"First AutoCAD Inventor Suite is R2008"]
[null,null,null,"Inventor ",null,3,{"$f":"CONCATENATE(D173,\" \",F173)","v":"Inventor  3"},null,null,null,null,null,null,"AutoCAD Inventor Suite",null,null,null,null,null,null,"First AutoCAD Inventor Suite is R2008"]
[null,null,null,"Inventor ",null,4,"Inventor  4",null,null,null,null,null,null,"AutoCAD Inventor Suite",null,null,null,null,null,null,"First AutoCAD Inventor Suite is R2008"]
[null,null,null,"Inventor ",null,5,"Inventor  5",null,null,null,null,null,null,"AutoCAD Inventor Suite",null,null,null,null,null,null,"First AutoCAD Inventor Suite is R2008"]
[null,null,null,"Inventor Series (AIS)",null,5,"Inventor Series (AIS) 5",null,null,null,null,null,null,"AutoCAD Inventor Suite",null,null,null,null,null,null,"First AutoCAD Inventor Suite is R2008"]
[null,null,null,"Inventor Series (AIS)",null,6,"Inventor Series (AIS) 6",null,null,null,null,null,null,"AutoCAD Inventor Suite",null,null,null,null,null,null,"First AutoCAD Inventor Suite is R2008"]
[null,null,null,"Inventor Series (AIS)",null,7,"Inventor Series (AIS) 7",null,null,null,null,null,null,"AutoCAD Inventor Suite",null,null,null,null,null,null,"First AutoCAD Inventor Suite is R2008"]
[null,null,null,"Inventor Series (AIS)",null,8,"Inventor Series (AIS) 8",null,null,null,null,null,null,"AutoCAD Inventor Suite",null,null,null,null,null,null,"First AutoCAD Inventor Suite is R2008"]
[null,null,null,"Inventor Series (AIS)",null,9,"Inventor Series (AIS) 9",null,null,null,null,null,null,"AutoCAD Inventor Suite",null,null,null,null,null,null,"First AutoCAD Inventor Suite is R2008"]
[null,null,null,"Inventor Series (AIS)",null,10,"Inventor Series (AIS) 10",null,null,null,null,null,null,"AutoCAD Inventor Suite",null,null,null,null,null,null,"First AutoCAD Inventor Suite is R2008"]
[null,null,null,"Inventor Series (AIS)",null,11,"Inventor Series (AIS) 11",null,null,null,null,null,null,"AutoCAD Inventor Suite",null,null,null,null,null,null,"First AutoCAD Inventor Suite is R2008"]
[null,null,null,"AutoCAD Mechanical Desktop",null,null,{"$f":"CONCATENATE(D183,\" \",F183)","v":"AutoCAD Mechanical Desktop "},null,null,null,null,null,null,"AutoCAD Inventor Suite"]
[null,null,null,"Mechanical Desktop (MDT)",null,2,"Mechanical Desktop (MDT) 2",null,null,null,null,null,null,"AutoCAD Inventor Suite"]
[null,null,null,"Mechanical Desktop (MDT)",null,3,"Mechanical Desktop (MDT) 3",null,null,null,null,null,null,"AutoCAD Inventor Suite"]
[null,null,null,"Mechanical Desktop (MDT)",null,4,"Mechanical Desktop (MDT) 4",null,null,null,null,null,null,"AutoCAD Inventor Suite"]
[null,null,null,"Mechanical Desktop (MDT)",null,5,"Mechanical Desktop (MDT) 5",null,null,null,null,null,null,"AutoCAD Inventor Suite"]
[null,null,null,"Mechanical Desktop (MDT)",null,6,"Mechanical Desktop (MDT) 6",null,null,null,null,null,null,"AutoCAD Inventor Suite"]
[null,null,null,"Mechanical Desktop (MDT)",null,"2004/2004 DX","Mechanical Desktop (MDT) 2004/2004 DX",null,null,null,null,null,null,"AutoCAD Inventor Suite"]
[null,null,null,"Autodesk 3ds Max",null,null,{"$f":"CONCATENATE(D190,\" \",F190)","v":"Autodesk 3ds Max "}]
[null,null,null,"3ds Max",null,3,"3ds Max 3"]
[null,null,null,"3ds Max",null,4,"3ds Max 4"]
[null,null,null,"3ds Max",null,5,"3ds Max 5"]
[null,null,null,"3ds Max",null,6,"3ds Max 6"]
[null,null,null,"3ds Max",null,7,"3ds Max 7"]
[null,null,null,"3ds Max",null,8,"3ds Max 8"]
[null,null,null,"3ds Max",null,9,"3ds Max 9"]
[null,null,null,"Autodesk MotionBuilder",null,null,"Autodesk MotionBuilder "]
[null,null,null,"MotionBuilder",null,7,"MotionBuilder 7"]
[null,null,null,"MotionBuilder",null,"7.5","MotionBuilder 7.5"]
[null,null,null,"Autodesk Maya Complete",null,null,{"$f":"CONCATENATE(D201,\" \",F201)","v":"Autodesk Maya Complete "}]
[null,null,null,"Maya Complete ",null,"7.0.1","Maya Complete  7.0.1"]
[null,null,null,"Maya Complete ",null,8,"Maya Complete  8"]
[null,null,null,"Maya Complete ",null,8.5,"Maya Complete  8.5"]
[null,null,null,"Autodesk Maya Unlimited",null,null,"Autodesk Maya Unlimited "]
[null,null,null,"Maya Unlimited ",null,"7.0.1","Maya Unlimited  7.0.1"]
[null,null,null,"Maya Unlimited ",null,8,"Maya Unlimited  8"]
[null,null,null,"Maya Unlimited ",null,8.5,"Maya Unlimited  8.5"]
[]
[]
[]
[]
[null,null,null,null,null,null,null,null,null,null,null,null,null,null,null,null,null,null,null,null,"First AutoCAD® P&ID release is R2010"]
[null,null,null,null,null,null,null,null,null,null,null,null,null,null,null,null,null,null,null,null,"First Autodesk Inventor is R2010  (re-emerge of name after long ago discontinued product)"]
[null,null,null,null,null,null,null,null,null,null,null,null,null,null,null,null,null,null,null,null,"First AutoCAD Inventor LT Suite  is R2010"]
[null,null,null,null,null,null,null,null,null,null,null,null,null,null,null,null,null,null,null,null,"First Autodesk Inventor LT is R2010  "]
[null,null,null,null,null,null,null,null,null,null,null,null,null,null,null,null,null,null,null,null,"First AutoCAD Plant 3D release is R2010"]